Workbook

Sheet 목표
B1: =TODAY() -> 2022-12-12 | C1: 목표 | J1: 운동 | K1: 다이어트
B2: 시작 날짜 | C2: 다이어트 및 운동 일지
B3: =시작날짜+121 -> 2023-04-12 | C3: 식습관 분석
B4: 종료 날짜
B5: 220.00
B6: 시작 체중
B7: 180.00 | C7: 운동 분석
B8: 종료 체중
B9: =시작체중-종료체중 -> 40
B10: 목표 체중 감소
B11: =종료날짜-시작날짜 -> 121
B12: 체중 감소 기간
B13: =목표_체중/B11 -> 0.33
B14: 일별 체중 감소

Sheet 다이어트
B1: 다이어트 | G1: 목표 | H1: 운동
B2: =부제목 -> 다이어트 및 운동 일지
B3: 날짜 | C3: 시간 | D3: 설명 | E3: 칼로리 | F3: 탄수화물 | G3: 단백질 | H3: 지방 | I3: 메모
B4: =시작날짜 -> 2022-12-12 | C4: 07:00:00 | D4: 커피 | E4: 1 | F4: 0 | G4: 0 | H4: 0 | I4: 모닝커피
B5: =시작날짜 -> 2022-12-12 | C5: 08:00:00 | D5: 베이글 | E5: 10 | F5: 10 | G5: 2 | H5: 10 | I5: 가벼운 아침식사
B6: =시작날짜 -> 2022-12-12 | C6: 12:00:00 | D6: 점심 식사 | E6: 283 | F6: 46 | G6: 18 | H6: 4 | I6: 칠면조 샌드위치
B7: =시작날짜 -> 2022-12-12 | C7: 19:00:00 | D7: 저녁 식사 | E7: 500 | F7: 42 | G7: 35 | H7: 25 | I7: 감자 튀김 캐서롤
B8: =시작날짜+1 -> 2022-12-13 | C8: 07:00:00 | D8: 커피 | E8: 1 | F8: 0 | G8: 0 | H8: 0 | I8: 모닝커피
B9: =시작날짜+1 -> 2022-12-13 | C9: 08:00:00 | D9: 토스트 | E9: 10 | F9: 10 | G9: 2 | H9: 10 | I9: 가벼운 아침식사
B10: =시작날짜+1 -> 2022-12-13 | C10: 12:00:00 | D10: 점심 식사 | E10: 189 | F10: 26 | G10: 3 | H10: 8 | I10: 샌드위치
B11: =시작날짜+1 -> 2022-12-13 | C11: 19:00:00 | D11: 저녁 식사 | E11: 477 | F11: 62 | G11: 14 | H11: 21 | I11: 저녁 식사
B12: =시작날짜+2 -> 2022-12-14 | C12: 07:00:00 | D12: 커피 | E12: 1 | F12: 0 | G12: 0 | H12: 0 | I12: 모닝커피
B13: =시작날짜+2 -> 2022-12-14 | C13: 08:00:00 | D13: 베이글 | E13: 245 | F13: 48 | G13: 10 | H13: 2 | I13: 가벼운 아침식사
B14: =시작날짜+2 -> 2022-12-14 | C14: 12:00:00 | D14: 점심 식사 | E14: 247 | F14: 11 | G14: 43 | H14: 5 | I14: 샐러드
B15: =시작날짜+2 -> 2022-12-14 | C15: 19:00:00 | D15: 저녁 식사 | E15: 456 | F15: 64 | G15: 32 | H15: 22 | I15: 저녁 식사
B16: =시작날짜+3 -> 2022-12-15 | C16: 07:00:00 | D16: 토스트 | E16: 10 | F16: 10 | G16: 2 | H16: 10 | I16: 가벼운 아침식사
B17: =시작날짜+3 -> 2022-12-15 | C17: 10:00:00 | D17: 커피 | E17: 135 | F17: 12 | G17: 9 | H17: 6 | I17: 라떼
B18: =시작날짜+3 -> 2022-12-15 | C18: 12:15:00 | D18: 점심 식사 | E18: 184 | F18: 7 | G18: 5 | H18: 15 | I18: 샐러드
B19: =시작날짜+5 -> 2022-12-17 | C19: 19:00:00 | D19: 저녁 식사 | E19: 477 | F19: 62 | G19: 14 | H19: 21 | I19: 저녁 식사

Sheet 운동
B1: 운동 | F1: 다이어트 | G1: 목표
B2: =부제목 -> 다이어트 및 운동 일지
B3: 날짜 | C3: 지속 시간(분) | D3: 칼로리 소모량 | E3: 메모
B4: =시작날짜+4 -> 2022-12-16 | C4: 30 | D4: 120 | E4: 러닝머신 운동
B5: =B4+1 -> 2022-12-17 | C5: 60 | D5: 180 | E5: 가벼운 에어로빅
B6: =B5+1 -> 2022-12-18 | C6: 60 | D6: 350 | E6: 과격한 운동
B7: 2022-12-19 | C7: 30 | D7: 150 | E7: 러닝머신 운동
B8: 2022-12-20 | C8: 25 | D8: 125 | E8: 달리기
B9: 2022-12-21 | C9: 20 | D9: 285 | E9: 러닝머신 운동
B10: 2022-12-22 | C10: 40 | D10: 205 | E10: 달리기
B11: 2022-12-23 | C11: 30 | D11: 335 | E11: 달리기
B12: 2022-12-24 | C12: 40 | D12: 175 | E12: 달리기
B13: 2022-12-25 | C13: 45 | D13: 325 | E13: 러닝머신 운동
B14: 2022-12-26 | C14: 40 | D14: 270 | E14: 달리기
B15: 2022-12-27 | C15: 20 | D15: 295 | E15: 러닝머신 운동
B16: 2022-12-28 | C16: 45 | D16: 350 | E16: 달리기
B17: 2022-12-29 | C17: 35 | D17: 320 | E17: 달리기
B18: 2022-12-30 | C18: 40 | D18: 290 | E18: 달리기
B19: =B18+1 -> 2022-12-31 | C19: 25 | D19: 265 | E19: 러닝머신 운동
B20: 2023-01-01 | C20: 20 | D20: 195 | E20: 달리기

Sheet 차트 계산 (hidden)
B2: 식습관 분석 차트 데이터
B4: 시작 행 | C4: =ROW(다이어트[[#Headers],[날짜]])+1 -> 4 | D4: 날짜 | E4: 요일 | F4: 지방 | G4: 단백질 | H4: 탄수화물 | I4: 칼로리 | J4: 숫자
B5: 마지막 다이어트 항목 | C5: =MATCH(9.99E+307,다이어트[날짜])+다이어트행시작-1 -> 19 | D5: =IFERROR(IF(INDEX(다이어트[],다이어트마지막종료-다이어트행시작-J5,1)<>"",INDEX(다이어트[],다이어트마지막종료-다이어트행시작-J5,1),""),"") -> 2022-12-12 | E5: =UPPER(TEXT(D5,"aaa")) -> 월 | F5: =IFERROR((IF(INDEX(다이어트[],다이어트마지막종료-다이어트행시작-J5,1)<>"",INDEX(다이어트[],다이어트마지막종료-다이어트행시작-J5,7),NA())),NA()) -> 3.5 | G5: =IFERROR((IF(INDEX(다이어트[],다이어트마지막종료-다이어트행시작-J5,1)<>"",INDEX(다이어트[],다이어트마지막종료-다이어트행시작-J5,6),NA())),NA()) -> 18 | H5: =IFERROR((IF(INDEX(다이어트[],다이어트마지막종료-다이어트행시작-J5,1)<>"",INDEX(다이어트[],다이어트마지막종료-다이어트행시작-J5,5),NA())),NA()) -> 46 | I5: =IFERROR((IF(INDEX(다이어트[],다이어트마지막종료-다이어트행시작-J5,1)<>"",INDEX(다이어트[],다이어트마지막종료-다이어트행시작-J5,4),NA())),NA()) -> 283 | J5: 12
D6: =IFERROR(IF(INDEX(다이어트[],다이어트마지막종료-다이어트행시작-J6,1)<>"",INDEX(다이어트[],다이어트마지막종료-다이어트행시작-J6,1),""),"") -> 2022-12-12 | E6: =UPPER(TEXT(D6,"aaa")) -> 월 | F6: =IFERROR((IF(INDEX(다이어트[],다이어트마지막종료-다이어트행시작-J6,1)<>"",INDEX(다이어트[],다이어트마지막종료-다이어트행시작-J6,7),NA())),NA()) -> 25 | G6: =IFERROR((IF(INDEX(다이어트[],다이어트마지막종료-다이어트행시작-J6,1)<>"",INDEX(다이어트[],다이어트마지막종료-다이어트행시작-J6,6),NA())),NA()) -> 35 | H6: =IFERROR((IF(INDEX(다이어트[],다이어트마지막종료-다이어트행시작-J6,1)<>"",INDEX(다이어트[],다이어트마지막종료-다이어트행시작-J6,5),NA())),NA()) -> 42 | I6: =IFERROR((IF(INDEX(다이어트[],다이어트마지막종료-다이어트행시작-J6,1)<>"",INDEX(다이어트[],다이어트마지막종료-다이어트행시작-J6,4),NA())),NA()) -> 500 | J6: 11
D7: =IFERROR(IF(INDEX(다이어트[],다이어트마지막종료-다이어트행시작-J7,1)<>"",INDEX(다이어트[],다이어트마지막종료-다이어트행시작-J7,1),""),"") -> 2022-12-13 | E7: =UPPER(TEXT(D7,"aaa")) -> 화 | F7: =IFERROR((IF(INDEX(다이어트[],다이어트마지막종료-다이어트행시작-J7,1)<>"",INDEX(다이어트[],다이어트마지막종료-다이어트행시작-J7,7),NA())),NA()) -> 0 | G7: =IFERROR((IF(INDEX(다이어트[],다이어트마지막종료-다이어트행시작-J7,1)<>"",INDEX(다이어트[],다이어트마지막종료-다이어트행시작-J7,6),NA())),NA()) -> 0 | H7: =IFERROR((IF(INDEX(다이어트[],다이어트마지막종료-다이어트행시작-J7,1)<>"",INDEX(다이어트[],다이어트마지막종료-다이어트행시작-J7,5),NA())),NA()) -> 0 | I7: =IFERROR((IF(INDEX(다이어트[],다이어트마지막종료-다이어트행시작-J7,1)<>"",INDEX(다이어트[],다이어트마지막종료-다이어트행시작-J7,4),NA())),NA()) -> 1 | J7: 10
D8: =IFERROR(IF(INDEX(다이어트[],다이어트마지막종료-다이어트행시작-J8,1)<>"",INDEX(다이어트[],다이어트마지막종료-다이어트행시작-J8,1),""),"") -> 2022-12-13 | E8: =UPPER(TEXT(D8,"aaa")) -> 화 | F8: =IFERROR((IF(INDEX(다이어트[],다이어트마지막종료-다이어트행시작-J8,1)<>"",INDEX(다이어트[],다이어트마지막종료-다이어트행시작-J8,7),NA())),NA()) -> 10 | G8: =IFERROR((IF(INDEX(다이어트[],다이어트마지막종료-다이어트행시작-J8,1)<>"",INDEX(다이어트[],다이어트마지막종료-다이어트행시작-J8,6),NA())),NA()) -> 2 | H8: =IFERROR((IF(INDEX(다이어트[],다이어트마지막종료-다이어트행시작-J8,1)<>"",INDEX(다이어트[],다이어트마지막종료-다이어트행시작-J8,5),NA())),NA()) -> 10 | I8: =IFERROR((IF(INDEX(다이어트[],다이어트마지막종료-다이어트행시작-J8,1)<>"",INDEX(다이어트[],다이어트마지막종료-다이어트행시작-J8,4),NA())),NA()) -> 10 | J8: 9
D9: =IFERROR(IF(INDEX(다이어트[],다이어트마지막종료-다이어트행시작-J9,1)<>"",INDEX(다이어트[],다이어트마지막종료-다이어트행시작-J9,1),""),"") -> 2022-12-13 | E9: =UPPER(TEXT(D9,"aaa")) -> 화 | F9: =IFERROR((IF(INDEX(다이어트[],다이어트마지막종료-다이어트행시작-J9,1)<>"",INDEX(다이어트[],다이어트마지막종료-다이어트행시작-J9,7),NA())),NA()) -> 8 | G9: =IFERROR((IF(INDEX(다이어트[],다이어트마지막종료-다이어트행시작-J9,1)<>"",INDEX(다이어트[],다이어트마지막종료-다이어트행시작-J9,6),NA())),NA()) -> 3 | H9: =IFERROR((IF(INDEX(다이어트[],다이어트마지막종료-다이어트행시작-J9,1)<>"",INDEX(다이어트[],다이어트마지막종료-다이어트행시작-J9,5),NA())),NA()) -> 26 | I9: =IFERROR((IF(INDEX(다이어트[],다이어트마지막종료-다이어트행시작-J9,1)<>"",INDEX(다이어트[],다이어트마지막종료-다이어트행시작-J9,4),NA())),NA()) -> 189 | J9: 8
D10: =IFERROR(IF(INDEX(다이어트[],다이어트마지막종료-다이어트행시작-J10,1)<>"",INDEX(다이어트[],다이어트마지막종료-다이어트행시작-J10,1),""),"") -> 2022-12-13 | E10: =UPPER(TEXT(D10,"aaa")) -> 화 | F10: =IFERROR((IF(INDEX(다이어트[],다이어트마지막종료-다이어트행시작-J10,1)<>"",INDEX(다이어트[],다이어트마지막종료-다이어트행시작-J10,7),NA())),NA()) -> 21 | G10: =IFERROR((IF(INDEX(다이어트[],다이어트마지막종료-다이어트행시작-J10,1)<>"",INDEX(다이어트[],다이어트마지막종료-다이어트행시작-J10,6),NA())),NA()) -> 13.5 | H10: =IFERROR((IF(INDEX(다이어트[],다이어트마지막종료-다이어트행시작-J10,1)<>"",INDEX(다이어트[],다이어트마지막종료-다이어트행시작-J10,5),NA())),NA()) -> 62 | I10: =IFERROR((IF(INDEX(다이어트[],다이어트마지막종료-다이어트행시작-J10,1)<>"",INDEX(다이어트[],다이어트마지막종료-다이어트행시작-J10,4),NA())),NA()) -> 477 | J10: 7
D11: =IFERROR(IF(INDEX(다이어트[],다이어트마지막종료-다이어트행시작-J11,1)<>"",INDEX(다이어트[],다이어트마지막종료-다이어트행시작-J11,1),""),"") -> 2022-12-14 | E11: =UPPER(TEXT(D11,"aaa")) -> 수 | F11: =IFERROR((IF(INDEX(다이어트[],다이어트마지막종료-다이어트행시작-J11,1)<>"",INDEX(다이어트[],다이어트마지막종료-다이어트행시작-J11,7),NA())),NA()) -> 0 | G11: =IFERROR((IF(INDEX(다이어트[],다이어트마지막종료-다이어트행시작-J11,1)<>"",INDEX(다이어트[],다이어트마지막종료-다이어트행시작-J11,6),NA())),NA()) -> 0 | H11: =IFERROR((IF(INDEX(다이어트[],다이어트마지막종료-다이어트행시작-J11,1)<>"",INDEX(다이어트[],다이어트마지막종료-다이어트행시작-J11,5),NA())),NA()) -> 0 | I11: =IFERROR((IF(INDEX(다이어트[],다이어트마지막종료-다이어트행시작-J11,1)<>"",INDEX(다이어트[],다이어트마지막종료-다이어트행시작-J11,4),NA())),NA()) -> 1 | J11: 6
D12: =IFERROR(IF(INDEX(다이어트[],다이어트마지막종료-다이어트행시작-J12,1)<>"",INDEX(다이어트[],다이어트마지막종료-다이어트행시작-J12,1),""),"") -> 2022-12-14 | E12: =UPPER(TEXT(D12,"aaa")) -> 수 | F12: =IFERROR((IF(INDEX(다이어트[],다이어트마지막종료-다이어트행시작-J12,1)<>"",INDEX(다이어트[],다이어트마지막종료-다이어트행시작-J12,7),NA())),NA()) -> 1.5 | G12: =IFERROR((IF(INDEX(다이어트[],다이어트마지막종료-다이어트행시작-J12,1)<>"",INDEX(다이어트[],다이어트마지막종료-다이어트행시작-J12,6),NA())),NA()) -> 10 | H12: =IFERROR((IF(INDEX(다이어트[],다이어트마지막종료-다이어트행시작-J12,1)<>"",INDEX(다이어트[],다이어트마지막종료-다이어트행시작-J12,5),NA())),NA()) -> 48 | I12: =IFERROR((IF(INDEX(다이어트[],다이어트마지막종료-다이어트행시작-J12,1)<>"",INDEX(다이어트[],다이어트마지막종료-다이어트행시작-J12,4),NA())),NA()) -> 245 | J12: 5
D13: =IFERROR(IF(INDEX(다이어트[],다이어트마지막종료-다이어트행시작-J13,1)<>"",INDEX(다이어트[],다이어트마지막종료-다이어트행시작-J13,1),""),"") -> 2022-12-14 | E13: =UPPER(TEXT(D13,"aaa")) -> 수 | F13: =IFERROR((IF(INDEX(다이어트[],다이어트마지막종료-다이어트행시작-J13,1)<>"",INDEX(다이어트[],다이어트마지막종료-다이어트행시작-J13,7),NA())),NA()) -> 5 | G13: =IFERROR((IF(INDEX(다이어트[],다이어트마지막종료-다이어트행시작-J13,1)<>"",INDEX(다이어트[],다이어트마지막종료-다이어트행시작-J13,6),NA())),NA()) -> 43 | H13: =IFERROR((IF(INDEX(다이어트[],다이어트마지막종료-다이어트행시작-J13,1)<>"",INDEX(다이어트[],다이어트마지막종료-다이어트행시작-J13,5),NA())),NA()) -> 11 | I13: =IFERROR((IF(INDEX(다이어트[],다이어트마지막종료-다이어트행시작-J13,1)<>"",INDEX(다이어트[],다이어트마지막종료-다이어트행시작-J13,4),NA())),NA()) -> 247 | J13: 4
D14: =IFERROR(IF(INDEX(다이어트[],다이어트마지막종료-다이어트행시작-J14,1)<>"",INDEX(다이어트[],다이어트마지막종료-다이어트행시작-J14,1),""),"") -> 2022-12-14 | E14: =UPPER(TEXT(D14,"aaa")) -> 수 | F14: =IFERROR((IF(INDEX(다이어트[],다이어트마지막종료-다이어트행시작-J14,1)<>"",INDEX(다이어트[],다이어트마지막종료-다이어트행시작-J14,7),NA())),NA()) -> 22 | G14: =IFERROR((IF(INDEX(다이어트[],다이어트마지막종료-다이어트행시작-J14,1)<>"",INDEX(다이어트[],다이어트마지막종료-다이어트행시작-J14,6),NA())),NA()) -> 32 | H14: =IFERROR((IF(INDEX(다이어트[],다이어트마지막종료-다이어트행시작-J14,1)<>"",INDEX(다이어트[],다이어트마지막종료-다이어트행시작-J14,5),NA())),NA()) -> 64 | I14: =IFERROR((IF(INDEX(다이어트[],다이어트마지막종료-다이어트행시작-J14,1)<>"",INDEX(다이어트[],다이어트마지막종료-다이어트행시작-J14,4),NA())),NA()) -> 456 | J14: 3
D15: =IFERROR(IF(INDEX(다이어트[],다이어트마지막종료-다이어트행시작-J15,1)<>"",INDEX(다이어트[],다이어트마지막종료-다이어트행시작-J15,1),""),"") -> 2022-12-15 | E15: =UPPER(TEXT(D15,"aaa")) -> 목 | F15: =IFERROR((IF(INDEX(다이어트[],다이어트마지막종료-다이어트행시작-J15,1)<>"",INDEX(다이어트[],다이어트마지막종료-다이어트행시작-J15,7),NA())),NA()) -> 10 | G15: =IFERROR((IF(INDEX(다이어트[],다이어트마지막종료-다이어트행시작-J15,1)<>"",INDEX(다이어트[],다이어트마지막종료-다이어트행시작-J15,6),NA())),NA()) -> 2 | H15: =IFERROR((IF(INDEX(다이어트[],다이어트마지막종료-다이어트행시작-J15,1)<>"",INDEX(다이어트[],다이어트마지막종료-다이어트행시작-J15,5),NA())),NA()) -> 10 | I15: =IFERROR((IF(INDEX(다이어트[],다이어트마지막종료-다이어트행시작-J15,1)<>"",INDEX(다이어트[],다이어트마지막종료-다이어트행시작-J15,4),NA())),NA()) -> 10 | J15: 2
D16: =IFERROR(IF(INDEX(다이어트[],다이어트마지막종료-다이어트행시작-J16,1)<>"",INDEX(다이어트[],다이어트마지막종료-다이어트행시작-J16,1),""),"") -> 2022-12-15 | E16: =UPPER(TEXT(D16,"aaa")) -> 목 | F16: =IFERROR((IF(INDEX(다이어트[],다이어트마지막종료-다이어트행시작-J16,1)<>"",INDEX(다이어트[],다이어트마지막종료-다이어트행시작-J16,7),NA())),NA()) -> 5.51 | G16: =IFERROR((IF(INDEX(다이어트[],다이어트마지막종료-다이어트행시작-J16,1)<>"",INDEX(다이어트[],다이어트마지막종료-다이어트행시작-J16,6),NA())),NA()) -> 8.81 | H16: =IFERROR((IF(INDEX(다이어트[],다이어트마지막종료-다이어트행시작-J16,1)<>"",INDEX(다이어트[],다이어트마지막종료-다이어트행시작-J16,5),NA())),NA()) -> 12.36 | I16: =IFERROR((IF(INDEX(다이어트[],다이어트마지막종료-다이어트행시작-J16,1)<>"",INDEX(다이어트[],다이어트마지막종료-다이어트행시작-J16,4),NA())),NA()) -> 135 | J16: 1
D17: =IFERROR(IF(INDEX(다이어트[],다이어트마지막종료-다이어트행시작-J17,1)<>"",INDEX(다이어트[],다이어트마지막종료-다이어트행시작-J17,1),""),"") -> 2022-12-15 | E17: =UPPER(TEXT(D17,"aaa")) -> 목 | F17: =IFERROR((IF(INDEX(다이어트[],다이어트마지막종료-다이어트행시작-J17,1)<>"",INDEX(다이어트[],다이어트마지막종료-다이어트행시작-J17,7),NA())),NA()) -> 15 | G17: =IFERROR((IF(INDEX(다이어트[],다이어트마지막종료-다이어트행시작-J17,1)<>"",INDEX(다이어트[],다이어트마지막종료-다이어트행시작-J17,6),NA())),NA()) -> 5.43 | H17: =IFERROR((IF(INDEX(다이어트[],다이어트마지막종료-다이어트행시작-J17,1)<>"",INDEX(다이어트[],다이어트마지막종료-다이어트행시작-J17,5),NA())),NA()) -> 7 | I17: =IFERROR((IF(INDEX(다이어트[],다이어트마지막종료-다이어트행시작-J17,1)<>"",INDEX(다이어트[],다이어트마지막종료-다이어트행시작-J17,4),NA())),NA()) -> 184 | J17: 0
D18: =IFERROR(IF(INDEX(다이어트[],다이어트마지막종료-다이어트행시작-J18,1)<>"",INDEX(다이어트[],다이어트마지막종료-다이어트행시작-J18,1)),"") -> 2022-12-17 | E18: =UPPER(TEXT(D18,"aaa")) -> 토 | F18: =IFERROR((IF(INDEX(다이어트[],다이어트마지막종료-다이어트행시작-J18,1)<>"",INDEX(다이어트[],다이어트마지막종료-다이어트행시작-J18,7),NA())),NA()) -> 21 | G18: =IFERROR((IF(INDEX(다이어트[],다이어트마지막종료-다이어트행시작-J18,1)<>"",INDEX(다이어트[],다이어트마지막종료-다이어트행시작-J18,6),NA())),NA()) -> 13.5 | H18: =IFERROR((IF(INDEX(다이어트[],다이어트마지막종료-다이어트행시작-J18,1)<>"",INDEX(다이어트[],다이어트마지막종료-다이어트행시작-J18,5),NA())),NA()) -> 62 | I18: =IFERROR((IF(INDEX(다이어트[],다이어트마지막종료-다이어트행시작-J18,1)<>"",INDEX(다이어트[],다이어트마지막종료-다이어트행시작-J18,4),NA())),NA()) -> 477 | J18: -1
B20: 운동 분석 차트 데이터
B22: 시작 행 | C22: =ROW(운동[[#Headers],[날짜]])+1 -> 4 | D22: 날짜 | E22: 요일 | F22: 지속 시간(분) | G22: 칼로리 소모량 | H22: 숫자
B23: 마지막 운동 항목 | C23: =MATCH(9.99E+307,운동[날짜])+운동행시작-1 -> 20 | D23: =IFERROR(IF(INDEX(운동[],운동마지막종료-운동행시작-H23,1)<>"",INDEX(운동[],운동마지막종료-운동행시작-H23,1)),"") -> 2023-01-01 | E23: =UPPER(TEXT(D23,"aaa")) -> 일 | F23: =IFERROR((IF(INDEX(운동[],운동마지막종료-운동행시작-H23,1)<>"",INDEX(운동[],운동마지막종료-운동행시작-H23,2),0)),0) -> 20 | G23: =IFERROR((IF(INDEX(운동[],운동마지막종료-운동행시작-H23,2)<>"",INDEX(운동[],운동마지막종료-운동행시작-H23,3),0)),0) -> 195 | H23: -1
D24: =IFERROR(IF(INDEX(운동[],운동마지막종료-운동행시작-H24,1)<>"",INDEX(운동[],운동마지막종료-운동행시작-H24,1)),"") -> 2022-12-31 | E24: =UPPER(TEXT(D24,"aaa")) -> 토 | F24: =IFERROR((IF(INDEX(운동[],운동마지막종료-운동행시작-H24,1)<>"",INDEX(운동[],운동마지막종료-운동행시작-H24,2),0)),0) -> 25 | G24: =IFERROR((IF(INDEX(운동[],운동마지막종료-운동행시작-H24,2)<>"",INDEX(운동[],운동마지막종료-운동행시작-H24,3),0)),0) -> 265 | H24: 0
D25: =IFERROR(IF(INDEX(운동[],운동마지막종료-운동행시작-H25,1)<>"",INDEX(운동[],운동마지막종료-운동행시작-H25,1)),"") -> 2022-12-30 | E25: =UPPER(TEXT(D25,"aaa")) -> 금 | F25: =IFERROR((IF(INDEX(운동[],운동마지막종료-운동행시작-H25,1)<>"",INDEX(운동[],운동마지막종료-운동행시작-H25,2),0)),0) -> 40 | G25: =IFERROR((IF(INDEX(운동[],운동마지막종료-운동행시작-H25,2)<>"",INDEX(운동[],운동마지막종료-운동행시작-H25,3),0)),0) -> 290 | H25: 1
D26: =IFERROR(IF(INDEX(운동[],운동마지막종료-운동행시작-H26,1)<>"",INDEX(운동[],운동마지막종료-운동행시작-H26,1)),"") -> 2022-12-29 | E26: =UPPER(TEXT(D26,"aaa")) -> 목 | F26: =IFERROR((IF(INDEX(운동[],운동마지막종료-운동행시작-H26,1)<>"",INDEX(운동[],운동마지막종료-운동행시작-H26,2),0)),0) -> 35 | G26: =IFERROR((IF(INDEX(운동[],운동마지막종료-운동행시작-H26,2)<>"",INDEX(운동[],운동마지막종료-운동행시작-H26,3),0)),0) -> 320 | H26: 2
D27: =IFERROR(IF(INDEX(운동[],운동마지막종료-운동행시작-H27,1)<>"",INDEX(운동[],운동마지막종료-운동행시작-H27,1)),"") -> 2022-12-28 | E27: =UPPER(TEXT(D27,"aaa")) -> 수 | F27: =IFERROR((IF(INDEX(운동[],운동마지막종료-운동행시작-H27,1)<>"",INDEX(운동[],운동마지막종료-운동행시작-H27,2),0)),0) -> 45 | G27: =IFERROR((IF(INDEX(운동[],운동마지막종료-운동행시작-H27,2)<>"",INDEX(운동[],운동마지막종료-운동행시작-H27,3),0)),0) -> 350 | H27: 3
D28: =IFERROR(IF(INDEX(운동[],운동마지막종료-운동행시작-H28,1)<>"",INDEX(운동[],운동마지막종료-운동행시작-H28,1)),"") -> 2022-12-27 | E28: =UPPER(TEXT(D28,"aaa")) -> 화 | F28: =IFERROR((IF(INDEX(운동[],운동마지막종료-운동행시작-H28,1)<>"",INDEX(운동[],운동마지막종료-운동행시작-H28,2),0)),0) -> 20 | G28: =IFERROR((IF(INDEX(운동[],운동마지막종료-운동행시작-H28,2)<>"",INDEX(운동[],운동마지막종료-운동행시작-H28,3),0)),0) -> 295 | H28: 4
D29: =IFERROR(IF(INDEX(운동[],운동마지막종료-운동행시작-H29,1)<>"",INDEX(운동[],운동마지막종료-운동행시작-H29,1)),"") -> 2022-12-26 | E29: =UPPER(TEXT(D29,"aaa")) -> 월 | F29: =IFERROR((IF(INDEX(운동[],운동마지막종료-운동행시작-H29,1)<>"",INDEX(운동[],운동마지막종료-운동행시작-H29,2),0)),0) -> 40 | G29: =IFERROR((IF(INDEX(운동[],운동마지막종료-운동행시작-H29,2)<>"",INDEX(운동[],운동마지막종료-운동행시작-H29,3),0)),0) -> 270 | H29: 5
D30: =IFERROR(IF(INDEX(운동[],운동마지막종료-운동행시작-H30,1)<>"",INDEX(운동[],운동마지막종료-운동행시작-H30,1)),"") -> 2022-12-25 | E30: =UPPER(TEXT(D30,"aaa")) -> 일 | F30: =IFERROR((IF(INDEX(운동[],운동마지막종료-운동행시작-H30,1)<>"",INDEX(운동[],운동마지막종료-운동행시작-H30,2),0)),0) -> 45 | G30: =IFERROR((IF(INDEX(운동[],운동마지막종료-운동행시작-H30,2)<>"",INDEX(운동[],운동마지막종료-운동행시작-H30,3),0)),0) -> 325 | H30: 6
D31: =IFERROR(IF(INDEX(운동[],운동마지막종료-운동행시작-H31,1)<>"",INDEX(운동[],운동마지막종료-운동행시작-H31,1)),"") -> 2022-12-24 | E31: =UPPER(TEXT(D31,"aaa")) -> 토 | F31: =IFERROR((IF(INDEX(운동[],운동마지막종료-운동행시작-H31,1)<>"",INDEX(운동[],운동마지막종료-운동행시작-H31,2),0)),0) -> 40 | G31: =IFERROR((IF(INDEX(운동[],운동마지막종료-운동행시작-H31,2)<>"",INDEX(운동[],운동마지막종료-운동행시작-H31,3),0)),0) -> 175 | H31: 7
D32: =IFERROR(IF(INDEX(운동[],운동마지막종료-운동행시작-H32,1)<>"",INDEX(운동[],운동마지막종료-운동행시작-H32,1)),"") -> 2022-12-23 | E32: =UPPER(TEXT(D32,"aaa")) -> 금 | F32: =IFERROR((IF(INDEX(운동[],운동마지막종료-운동행시작-H32,1)<>"",INDEX(운동[],운동마지막종료-운동행시작-H32,2),0)),0) -> 30 | G32: =IFERROR((IF(INDEX(운동[],운동마지막종료-운동행시작-H32,2)<>"",INDEX(운동[],운동마지막종료-운동행시작-H32,3),0)),0) -> 335 | H32: 8
D33: =IFERROR(IF(INDEX(운동[],운동마지막종료-운동행시작-H33,1)<>"",INDEX(운동[],운동마지막종료-운동행시작-H33,1)),"") -> 2022-12-22 | E33: =UPPER(TEXT(D33,"aaa")) -> 목 | F33: =IFERROR((IF(INDEX(운동[],운동마지막종료-운동행시작-H33,1)<>"",INDEX(운동[],운동마지막종료-운동행시작-H33,2),0)),0) -> 40 | G33: =IFERROR((IF(INDEX(운동[],운동마지막종료-운동행시작-H33,2)<>"",INDEX(운동[],운동마지막종료-운동행시작-H33,3),0)),0) -> 205 | H33: 9
D34: =IFERROR(IF(INDEX(운동[],운동마지막종료-운동행시작-H34,1)<>"",INDEX(운동[],운동마지막종료-운동행시작-H34,1)),"") -> 2022-12-21 | E34: =UPPER(TEXT(D34,"aaa")) -> 수 | F34: =IFERROR((IF(INDEX(운동[],운동마지막종료-운동행시작-H34,1)<>"",INDEX(운동[],운동마지막종료-운동행시작-H34,2),0)),0) -> 20 | G34: =IFERROR((IF(INDEX(운동[],운동마지막종료-운동행시작-H34,2)<>"",INDEX(운동[],운동마지막종료-운동행시작-H34,3),0)),0) -> 285 | H34: 10
D35: =IFERROR(IF(INDEX(운동[],운동마지막종료-운동행시작-H35,1)<>"",INDEX(운동[],운동마지막종료-운동행시작-H35,1)),"") -> 2022-12-20 | E35: =UPPER(TEXT(D35,"aaa")) -> 화 | F35: =IFERROR((IF(INDEX(운동[],운동마지막종료-운동행시작-H35,1)<>"",INDEX(운동[],운동마지막종료-운동행시작-H35,2),0)),0) -> 25 | G35: =IFERROR((IF(INDEX(운동[],운동마지막종료-운동행시작-H35,2)<>"",INDEX(운동[],운동마지막종료-운동행시작-H35,3),0)),0) -> 125 | H35: 11
D36: =IFERROR(IF(INDEX(운동[],운동마지막종료-운동행시작-H36,1)<>"",INDEX(운동[],운동마지막종료-운동행시작-H36,1)),"") -> 2022-12-19 | E36: =UPPER(TEXT(D36,"aaa")) -> 월 | F36: =IFERROR((IF(INDEX(운동[],운동마지막종료-운동행시작-H36,1)<>"",INDEX(운동[],운동마지막종료-운동행시작-H36,2),0)),0) -> 30 | G36: =IFERROR((IF(INDEX(운동[],운동마지막종료-운동행시작-H36,2)<>"",INDEX(운동[],운동마지막종료-운동행시작-H36,3),0)),0) -> 150 | H36: 12
